fUSD/lending_fUSD_20250120
["ID","MTS","AMOUNT","RATE_DAILY","PERIOD"]
[349697069,1737381056662,-456.40494708,0.00019802,2]
[349697070,1737381056671,-1353.22,0.00019802,2]
[349697071,1737381056682,-500.0,0.00019802,2]
[349697072,1737381056691,-1329.7,0.00019802,2]
[349697073,1737381056701,-678.72,0.00019802,2]
[349697074,1737381056710,-1055.34,0.00019802,2]
[349697075,1737381056721,-535.54,0.00019802,2]
[349697076,1737381056731,-500.0,0.00019802,2]
[349697077,1737381056740,-720.35,0.00019802,2]
[349697078,1737381056749,-500.0,0.00019802,2]
[349697079,1737381056758,-500.0,0.00019802,2]
[349697080,1737381056767,-500.0,0.00019802,2]
[349697081,1737381056776,-500.0,0.00019802,2]
[349697082,1737381056786,-1034.16,0.00019802,2]
[349697083,1737381056795,-500.0,0.00019802,2]
[349697084,1737381056804,-580.67,0.00019802,2]
[349697085,1737381056814,-718.84,0.00019802,2]
[349697086,1737381056823,-500.0,0.00019802,2]
[349697087,1737381056832,-500.0,0.00019802,2]
[349697088,1737381056841,-500.0,0.00019802,2]
[349697089,1737381056851,-500.0,0.00019802,2]
[349697090,1737381056860,-500.0,0.00019802,2]
[349697091,1737381056869,-554.58,0.00019802,2]
[349697092,1737381056878,-500.0,0.00019802,2]
[349697093,1737381056887,-862.11,0.00019802,2]
[349697094,1737381056896,-500.0,0.00019802,2]
[349697095,1737381056905,-500.0,0.00019802,2]
[349697096,1737381056914,-500.0,0.00019802,2]
[349697097,1737381056923,-698.89,0.00019802,2]
[349697098,1737381056932,-500.0,0.00019802,2]
[349697099,1737381056942,-1319.28,0.00019802,2]
[349697100,1737381056951,-500.0,0.00019802,2]
[349697101,1737381056961,-643.65,0.00019802,2]
[349697102,1737381056971,-500.0,0.00019802,2]
[349697103,1737381056980,-500.0,0.00019802,2]
[349697104,1737381056989,-925.51,0.00019802,2]
[349697105,1737381056998,-500.0,0.00019802,2]
[349697106,1737381057007,-742.12,0.00019802,2]
[349697107,1737381057017,-490.11020414,0.00019802,2]
[349697108,1737381057025,-753.92,0.00019802,2]
[349697109,1737381057034,-500.0,0.00019802,2]
[349697110,1737381057043,-4330.11,0.00019802,2]
[349697111,1737381057052,-500.0,0.00019802,2]
[349697112,1737381057061,-781.82,0.00019802,2]
[349697113,1737381057071,-500.0,0.00019802,2]
[349697114,1737381057079,-500.0,0.00019802,2]
[349697115,1737381057089,-150.0,0.00019829,2]
[349697116,1737381057099,-500.0,0.000199,7]
[349697117,1737381057112,-154.06597427,0.000199,2]
[349697118,1737381057122,-203.99525331,0.000199,2]
[349697119,1737381057131,-150.0,0.0001995,2]
[349697120,1737381057140,-150.0,0.00019952,2]
[349697121,1737381057150,-669.5971,0.00019977,2]
[349697122,1737381057159,-3983.00893365,0.00019997,2]
[349697123,1737381057168,-753.95,0.00019999,2]
[349697124,1737381057177,-2231.13,0.00019999,2]
[349697125,1737381057187,-500.0,0.00019999,2]
[349697126,1737381057195,-767.17,0.00019999,2]
[349697127,1737381057204,-1016.27,0.00019999,2]
[349697128,1737381057213,-1992.69,0.00019999,2]
[349697129,1737381057223,-500.0,0.00019999,2]
[349697130,1737381057232,-1000.0,0.00019999,2]
[349697131,1737381057241,-1941.95,0.00019999,2]
[349697132,1737381057249,-891.14,0.00019999,2]
[349697133,1737381057258,-2469.18,0.00019999,2]
[349697134,1737381057267,-2530.09,0.00019999,2]
[349697135,1737381057276,-200.0,0.0002,5]
[349697136,1737381057286,-508.64,0.0002,2]
[349697137,1737381057295,-500.0,0.0002,2]
[349697138,1737381057304,-500.0,0.0002,2]
[349697139,1737381057313,-500.0,0.0002,2]
[349697140,1737381057322,-500.0,0.0002,2]
[349697141,1737381057331,-500.0,0.0002,2]
[349697142,1737381057340,-500.0,0.0002,2]
[349697143,1737381057349,-500.0,0.0002,2]
[349697144,1737381057358,-500.0,0.0002,2]
[349697145,1737381057367,-504.84,0.0002,2]
[349697146,1737381057376,-500.0,0.0002,2]
[349697147,1737381057386,-500.0,0.0002,2]
[349697148,1737381057395,-500.0,0.0002,2]
[349697149,1737381057404,-547.09,0.0002,2]
[349697150,1737381057414,-664.84,0.0002,2]
[349697151,1737381057423,-500.0,0.0002,2]
[349697152,1737381057433,-500.0,0.0002,2]
[349697153,1737381057443,-500.0,0.0002,2]
[349697154,1737381057452,-500.0,0.0002,2]
[349697155,1737381057462,-500.0,0.0002,2]
[349697156,1737381057472,-500.0,0.0002,2]
[349697157,1737381057481,-500.0,0.0002,2]
[349697158,1737381057491,-500.0,0.0002,2]
[349697159,1737381057500,-718.85,0.0002,2]
[349697160,1737381057509,-500.0,0.0002,2]
[349697161,1737381057518,-500.0,0.0002,2]
[349697162,1737381057528,-500.0,0.0002,2]
[349697163,1737381057537,-500.0,0.0002,2]
[349697164,1737381057546,-684.16,0.0002,2]
[349697165,1737381057556,-500.0,0.0002,2]
[349697166,1737381057566,-414.56392503,0.0002,2]
[349697167,1737381057575,-500.0,0.0002,2]
[349697168,1737381057584,-500.0,0.0002,2]
[349697169,1737381057593,-500.0,0.0002,2]
[349697170,1737381057602,-514.28,0.0002,2]
[349697171,1737381057611,-514.8,0.0002,2]
[349697172,1737381057620,-588.98795338,0.0002,2]
[349697173,1737381057630,-506.22,0.0002,2]
[349697174,1737381057639,-500.0,0.0002,2]
[349697175,1737381057648,-500.0,0.0002,2]
[349697176,1737381057657,-500.0,0.0002,2]
[349697177,1737381057667,-512.7,0.0002,2]
[349697178,1737381057676,-500.0,0.0002,2]
[349697179,1737381057685,-500.0,0.0002,2]
[349697180,1737381057695,-500.0,0.0002,2]
[349697181,1737381057704,-545.89,0.0002,2]
[349697182,1737381057713,-500.0,0.0002,2]
[349697183,1737381057724,-818.97,0.0002,2]
[349697184,1737381057733,-500.0,0.0002,2]
[349697185,1737381057742,-600.0,0.0002,3]
[349697186,1737381057751,-500.0,0.0002,2]
[349697187,1737381057760,-500.0,0.0002,2]
[349697188,1737381057770,-500.0,0.0002,2]
[349697189,1737381057779,-500.0,0.0002,2]
[349697190,1737381057788,-583.97,0.0002,2]
[349697191,1737381057797,-603.112755,0.0002,2]
[349697192,1737381057806,-1437.27,0.0002,2]
[349697193,1737381057815,-500.0,0.0002,2]
[349697194,1737381057824,-1246.61,0.0002,2]
[349697195,1737381057833,-500.0,0.0002,2]
[349697196,1737381057842,-1096.45,0.0002,2]
[349697197,1737381057851,-579.02,0.0002,2]
[349697198,1737381057860,-766.68,0.0002,2]
[349697199,1737381057870,-637.05,0.0002,2]
[349697200,1737381057879,-500.0,0.0002,2]
[349697201,1737381057888,-500.0,0.0002,2]
[349697202,1737381057897,-564.39,0.0002,2]
[349697203,1737381057906,-500.0,0.0002,2]
[349697204,1737381057915,-697.94,0.0002,2]
[349697205,1737381057924,-500.0,0.0002,2]
[349697206,1737381057934,-1606.13748081,0.0002,2]
[349697207,1737381057953,-235.07251919,0.0002,2]
[349697208,1737381057964,-500.0,0.0002,2]
[349697209,1737381057974,-1651.99,0.0002,2]
[349697210,1737381057983,-992.79,0.0002,2]
[349697211,1737381057992,-1838.66,0.0002,2]
[349697212,1737381058000,-2007.3,0.0002,2]
[349697213,1737381058010,-500.0,0.0002,2]
[349697214,1737381058020,-500.0,0.0002,2]
[349697215,1737381058029,-909.5,0.0002,2]
[349697216,1737381058039,-1138.98,0.0002,2]
[349697217,1737381058048,-1713.17,0.0002,2]
[349697218,1737381058058,-2110.32,0.0002,2]
[349697219,1737381058067,-1008.65,0.0002,2]
[349697220,1737381058076,-987.41,0.0002,2]
[349697221,1737381058086,-1020.53,0.0002,2]
[349697222,1737381058094,-1683.92,0.0002,2]
[349697223,1737381058105,-901.84,0.0002,2]
[349697224,1737381058115,-1886.12,0.0002,2]
[349697225,1737381058124,-500.0,0.0002,2]
[349697226,1737381058134,-500.0,0.0002,2]
[349697227,1737381058143,-2739.22,0.0002,2]
[349697228,1737381058153,-500.0,0.0002001,2]
[349697229,1737381058164,-500.0,0.0002001,2]
[349697230,1737381058173,-500.0,0.0002001,2]
[349697231,1737381058184,-500.0,0.0002001,2]
[349697232,1737381058194,-500.0,0.0002001,2]
[349697233,1737381058204,-351.82899662,0.0002001,2]
[349697234,1737381058213,-380.69652871,0.0002001,2]
[349697235,1737381058224,-801.34,0.0002001,2]
[349697236,1737381058233,-1574.21,0.0002001,2]
[349697237,1737381058243,-500.0,0.0002001,2]
[349697238,1737381058252,-500.0,0.0002001,2]
[349697239,1737381058262,-500.0,0.0002001,2]
[349697240,1737381058271,-500.0,0.0002001,2]
[349697241,1737381058280,-500.0,0.0002001,2]
[349697242,1737381058289,-2148.9,0.0002001,2]
[349697243,1737381058299,-500.0,0.0002001,2]
[349697244,1737381058310,-500.0,0.0002001,2]
[349697245,1737381058319,-684.14,0.0002001,2]
[349697246,1737381058328,-500.0,0.0002001,2]
[349697247,1737381058339,-500.0,0.0002001,2]
[349697248,1737381058350,-500.0,0.0002001,2]
[349697249,1737381058360,-1056.18,0.0002001,2]
[349697250,1737381058370,-500.0,0.0002001,2]
[349697251,1737381058379,-500.0,0.0002001,2]
[349697252,1737381058389,-735.93,0.0002001,2]
[349697253,1737381058399,-1356.65,0.0002001,2]
[349697254,1737381058409,-827.58,0.0002001,2]
[349697255,1737381058419,-500.0,0.0002001,2]
[349697256,1737381058428,-1097.36,0.0002001,2]
[349697257,1737381058441,-500.0,0.0002001,2]
[349697258,1737381058451,-500.0,0.0002001,2]
[349697259,1737381058460,-615.56,0.0002001,2]
[349697260,1737381058471,-500.0,0.0002001,2]
[349697261,1737381058480,-500.0,0.0002001,2]
[349697262,1737381058490,-879.17,0.0002001,2]
[349697263,1737381058499,-500.0,0.0002001,2]
[349697264,1737381058509,-672.55,0.0002001,2]
[349697265,1737381058518,-500.0,0.0002001,2]
[349697266,1737381058528,-995.42,0.0002001,2]
[349697267,1737381058538,-1263.67,0.0002001,2]
[349697268,1737381058548,-160.88379766,0.0002001,2]
[349697269,1737381058557,-676.72,0.0002001,2]
[349697270,1737381058567,-500.0,0.0002001,2]
[349697271,1737381058576,-607.67,0.0002001,2]
[349697272,1737381058586,-934.82,0.0002001,2]
[349697273,1737381058595,-500.0,0.0002001,2]
[349697274,1737381058605,-500.0,0.0002001,2]
[349697275,1737381058614,-698.76,0.0002001,2]
[349697276,1737381058624,-500.0,0.0002001,2]
[349697277,1737381058634,-500.0,0.0002001,2]
[349697278,1737381058643,-688.31,0.0002001,2]
[349697279,1737381058654,-500.0,0.0002001,2]
[349697280,1737381058664,-872.65,0.0002001,2]
[349697281,1737381058673,-500.0,0.0002001,2]
[349697282,1737381058683,-2427.13,0.0002001,2]
[349697283,1737381058692,-514.85912522,0.0002001,2]
[349697284,1737381058856,-845.06,0.0002001,2]
[349697285,1737381058867,-512.64,0.0002001,2]
[349697286,1737381058876,-500.0,0.0002001,2]
[349697287,1737381058885,-918.71,0.0002001,2]
[349697288,1737381058895,-500.0,0.0002001,2]
[349697289,1737381058904,-3038.22,0.0002001,2]
[349697290,1737381058913,-3521.03,0.0002001,2]
[349697291,1737381058922,-2026.53,0.0002001,2]
[349697292,1737381058932,-1210.25,0.0002001,2]
[349697293,1737381058941,-500.0,0.0002001,2]
[349697294,1737381058950,-500.0,0.0002001,2]
[349697295,1737381058959,-846.52,0.0002001,2]
[349697296,1737381058970,-500.0,0.0002001,2]
[349697297,1737381058979,-742.27,0.0002001,2]
[349697298,1737381058988,-150.0,0.00020013,2]
[349697299,1737381058998,-1007.45152055,0.00020019,2]
[349697300,1737381059008,-150.0,0.00020043,2]
[349697301,1737381059017,-150.0,0.00020072,2]
[349697302,1737381059026,-500.0,0.00020076,2]
[349697303,1737381059036,-740.78,0.00020076,2]
[349697304,1737381059045,-500.0,0.00020076,2]
[349697305,1737381059054,-1643.64,0.00020076,2]
[349697306,1737381059063,-500.0,0.00020076,2]
[349697307,1737381059073,-500.0,0.00020076,2]
[349697308,1737381059082,-500.0,0.00020076,2]
[349697309,1737381059092,-500.0,0.00020076,2]
[349697310,1737381059103,-547.87,0.00020076,2]
[349697311,1737381059112,-500.0,0.00020076,2]
[349697312,1737381059122,-500.0,0.00020076,2]
[349697313,1737381059131,-584.97,0.00020076,2]
[349697314,1737381059141,-500.0,0.00020076,2]
[349697315,1737381059154,-500.0,0.00020076,2]
[349697316,1737381059164,-500.0,0.00020076,2]
[349697317,1737381059174,-669.35,0.00020076,2]
[349697318,1737381059184,-418.48383812,0.00020076,2]
[349697319,1737381059194,-500.0,0.00020076,2]
[349697320,1737381059203,-630.00596968,0.00020076,2]
[349697321,1737381059218,-500.0,0.00020076,2]
[349697322,1737381059227,-500.0,0.00020076,2]
[349697323,1737381059237,-500.0,0.00020076,2]
[349697324,1737381059247,-500.0,0.00020076,2]
[349697325,1737381059256,-500.0,0.00020076,2]
[349697326,1737381059266,-500.0,0.00020076,2]
[349697327,1737381059275,-500.0,0.00020076,2]
[349697328,1737381059285,-500.0,0.00020076,2]
[349697329,1737381059294,-500.0,0.00020076,2]
[349697330,1737381059303,-500.0,0.00020076,2]
[349697331,1737381059312,-604.17,0.00020076,2]
[349697332,1737381059321,-635.45,0.00020076,2]
[349697333,1737381059330,-500.0,0.00020076,2]
[349697334,1737381059339,-500.0,0.00020076,2]
[349697335,1737381059348,-500.0,0.00020076,2]
[349697336,1737381059358,-662.38,0.00020076,2]
[349697337,1737381059368,-815.25,0.00020076,2]
[349697338,1737381059377,-500.0,0.00020076,2]
[349697339,1737381059387,-92.31828182,0.00020076,2]
[349697340,1737381422993,6868.945,0.00024,120]
[349697342,1737381753427,170.16,0.00010137,2]
[349697344,1737381759511,2500.0,0.00018,30]
[349697345,1737382155144,-666.6,0.00015946,2]
[349697353,1737382231503,-288.482785,0.00017465,2]
[349697354,1737382231515,-724.70224354,0.00017553,2]
[349697355,1737382231528,-10846.67052126,0.00017653,2]
[349697356,1737382231538,-250.0,0.00017776,2]
[349697357,1737382231547,-3717.8062837,0.00017776,2]
[349697358,1737382231559,-5964.73724,0.00017776,2]
[349697359,1737382231570,-11556.02017621,0.00017776,2]
[349697360,1737382231582,-2661.43630009,0.00017776,2]
[349697361,1737382231591,-1132.12,0.00017853,2]
[349697362,1737382231600,-177.88,0.00017853,2]
[349697363,1737382231610,-845.93,0.00017864,2]
[349697364,1737382231619,-572.84,0.00017876,2]
[349697365,1737382231628,-183.23,0.00017922,2]
[349697366,1737382231638,-1000.0,0.00017947,2]
[349697367,1737382231647,-250.0,0.00018048,2]
[349697368,1737382231656,-173.68,0.00018048,2]
[349697369,1737382231666,-284.71,0.0001811,2]
[349697370,1737382231675,-500.0,0.00018164,2]
[349697371,1737382231685,-500.0,0.00018164,2]
[349697372,1737382231694,-444.7,0.0001818,30]
[349697373,1737382231704,-666.6,0.0001821,2]
[349697374,1737382231713,-6270.39,0.00018225,2]
[349697375,1737382231731,-877.402,0.00018514,2]
[349697376,1737382231741,-170.84,0.00018536,2]
[349697377,1737382231751,-1153.7728,0.00018649,2]
[349697378,1737382231761,-3811.3275,0.00018649,2]
[349697379,1737382231771,-2492.9422,0.00018649,2]
[349697380,1737382231780,-8589.67,0.00018767,7]
[349697381,1737382231790,-7753.59165903,0.00018767,7]
[349697458,1737382237421,-836.07834097,0.00018767,7]
[349697460,1737382237430,-8589.67,0.00018767,7]
[349697462,1737382237440,-8589.67,0.00018767,7]
[349697464,1737382237455,-797.47,0.00018793,2]
[349697466,1737382237466,-6648.8777,0.000189,2]
[349697468,1737382237475,-203.82200625,0.000189,2]
[349697470,1737382237484,-1815.72728876,0.00018941,2]
[349697472,1737382237495,-173.68,0.00018951,2]
[349697474,1737382237504,-1000.0,0.00018978,2]
[349697476,1737382237514,-9314.74154988,0.00019,2]
[349697479,1737382237539,-31417.25845012,0.00019,2]
[349697481,1737382237548,-1666.78270912,0.00019,4]
[349697483,1737382237558,-8589.67,0.00019041,7]
[349697485,1737382237567,-1261.87462777,0.00019041,7]
[349697488,1737382237583,-324.183639,0.00019041,7]
[349697497,1737382237661,-7003.61173323,0.00019041,7]
[349697499,1737382237672,-3052.1444,0.00019078,2]
[349697501,1737382237682,-785.6598,0.00019078,2]
[349697503,1737382237691,-5111.46,0.00019078,2]
[349697505,1737382237700,-6575.5289,0.00019078,2]
[349697507,1737382237709,-217.6129,0.00019078,2]
[349697509,1737382237720,-1815.72728868,0.00019086,2]
[349697511,1737382237730,-303.8815,0.00019088,2]
[349697513,1737382237739,-1208.6144,0.00019088,2]
[349697515,1737382237748,-17329.879,0.00019088,2]
[349697517,1737382237758,-500.0,0.00019088,2]
[349697519,1737382237768,-15757.0787,0.00019089,2]
[349697521,1737382237777,-529.3983,0.00019089,2]
[349697523,1737382237786,-203.82200623,0.00019114,2]
[349697525,1737382237795,-5000.0,0.00019152,2]
[349697527,1737382237805,-1000.0,0.00019177,2]
[349697529,1737382237814,-500.0,0.00019178,2]
[349697531,1737382237823,-500.0,0.00019178,2]
[349697533,1737382237833,-500.0,0.00019178,2]
[349697535,1737382237842,-500.0,0.00019178,2]
[349697537,1737382237853,-500.0,0.00019178,2]
[349697539,1737382237864,-500.0,0.00019178,2]
[349697541,1737382237873,-500.0,0.00019178,2]
[349697543,1737382237883,-500.0,0.00019178,2]
[349697545,1737382237892,-500.0,0.00019178,2]
[349697547,1737382237901,-525.52,0.00019178,2]
[349697549,1737382237911,-500.0,0.00019178,2]
[349697551,1737382237920,-500.0,0.00019178,2]
[349697553,1737382237930,-641.68,0.00019178,2]
[349697555,1737382237939,-500.0,0.00019178,2]
[349697557,1737382237948,-500.0,0.00019178,2]
[349697558,1737382237958,-500.0,0.00019178,2]
[349697561,1737382237967,-500.0,0.00019178,2]
[349697562,1737382237977,-500.0,0.00019178,2]
[349697564,1737382237987,-500.0,0.00019178,2]
[349697567,1737382237996,-500.0,0.00019178,2]
[349697569,1737382238006,-699.28,0.00019178,2]
[349697571,1737382238015,-500.0,0.00019178,2]
[349697572,1737382238025,-500.0,0.00019178,2]
[349697574,1737382238034,-664.06,0.00019178,2]
[349697576,1737382238044,-500.0,0.00019178,2]
[349697578,1737382238053,-500.0,0.00019178,2]
[349697580,1737382238063,-500.0,0.00019178,2]
[349697582,1737382238073,-500.0,0.00019178,2]
[349697584,1737382238083,-500.0,0.00019178,2]
[349697586,1737382238092,-500.0,0.00019178,2]
[349697588,1737382238103,-500.0,0.00019178,2]
[349697590,1737382238112,-500.0,0.00019178,2]
[349697592,1737382238122,-500.0,0.00019178,2]
[349697594,1737382238131,-500.0,0.00019178,2]
[349697596,1737382238141,-500.0,0.00019178,2]
[349697598,1737382238152,-500.0,0.00019178,2]
[349697600,1737382238164,-203.2799019,0.00019178,2]
[349697602,1737382238175,-500.59,0.00019178,2]
[349697604,1737382238184,-500.0,0.00019178,2]
[349697606,1737382238195,-500.0,0.00019178,2]
[349697607,1737382238204,-500.0,0.00019178,2]
[349697608,1737382238214,-500.0,0.00019178,2]
[349697609,1737382238226,-500.0,0.00019178,2]
[349697611,1737382238235,-500.0,0.00019178,2]
[349697613,1737382238246,-500.0,0.00019178,2]
[349697615,1737382238255,-500.0,0.00019178,2]
[349697617,1737382238265,-500.0,0.00019178,2]
[349697619,1737382238275,-500.0,0.00019178,2]
[349697620,1737382238284,-500.0,0.00019178,2]
[349697621,1737382238293,-500.0,0.00019178,2]
[349697622,1737382238303,-529.55,0.00019178,2]
[349697623,1737382238313,-500.0,0.00019178,2]
[349697624,1737382238323,-739.75,0.00019178,2]
[349697625,1737382238332,-500.0,0.00019178,2]
[349697626,1737382238342,-500.0,0.00019178,2]
[349697627,1737382238352,-500.0,0.00019178,2]
[349697628,1737382238362,-500.0,0.00019178,2]
[349697629,1737382238371,-1197.72,0.00019178,2]
[349697630,1737382238382,-500.0,0.00019178,2]
[349697631,1737382238392,-913.71,0.00019178,2]
[349697632,1737382238402,-638.9,0.00019178,2]
[349697633,1737382238412,-500.0,0.00019178,2]
[349697634,1737382238422,-500.0,0.00019178,2]
[349697635,1737382238431,-581.61,0.00019178,2]
[349697636,1737382238441,-500.0,0.00019178,2]
[349697637,1737382238452,-827.32,0.00019178,2]
[349697638,1737382238465,-500.0,0.00019178,2]
[349697639,1737382238476,-737.57,0.00019178,2]
[349697640,1737382238491,-500.0,0.00019178,2]
[349697641,1737382238503,-757.91,0.00019178,2]
[349697642,1737382238514,-1427.64,0.00019178,2]
[349697643,1737382238524,-807.49,0.00019178,2]
[349697644,1737382238535,-1049.32,0.00019178,2]
[349697645,1737382238546,-500.0,0.00019178,2]
[349697646,1737382238556,-840.54,0.00019178,2]
[349697647,1737382238566,-881.85,0.00019178,2]
[349697648,1737382238795,-1365.96,0.00019178,2]
[349697649,1737382238806,-1008.48,0.00019178,2]
[349697650,1737382238816,-500.0,0.00019178,2]
[349697651,1737382238826,-500.0,0.00019178,2]
[349697652,1737382238835,-500.0,0.00019178,2]
[349697653,1737382238845,-660.95,0.00019178,2]
[349697654,1737382238856,-1272.81,0.00019178,2]
[349697655,1737382238866,-935.56,0.00019178,2]
[349697656,1737382238875,-699.74,0.00019178,2]
[349697657,1737382238884,-597.92,0.00019178,2]
[349697658,1737382238899,-500.0,0.00019178,2]
[349697659,1737382238912,-859.79,0.00019178,2]
[349697660,1737382238922,-500.0,0.00019178,2]
[349697661,1737382238931,-718.07,0.00019178,2]
[349697662,1737382238940,-2440.68,0.00019178,2]
[349697663,1737382238950,-517.27,0.00019178,2]
[349697664,1737382238960,-500.0,0.00019178,2]
[349697665,1737382238971,-867.38,0.00019178,2]
[349697666,1737382238980,-500.0,0.00019178,2]
[349697667,1737382238990,-500.0,0.00019178,2]
[349697668,1737382238999,-500.0,0.00019178,2]
[349697669,1737382239009,-2934.2,0.00019178,2]
[349697670,1737382239018,-832.79,0.00019178,2]
[349697671,1737382239028,-1840.64,0.00019178,2]
[349697672,1737382239038,-500.0,0.00019189,2]
[349697673,1737382239048,-500.0,0.00019189,2]
[349697674,1737382239058,-172.72204773,0.00019189,2]
[349697675,1737382239067,-500.0,0.00019189,2]
[349697676,1737382239077,-204.04880849,0.00019189,2]
[349697677,1737382239087,-500.0,0.00019189,2]
[349697678,1737382239096,-500.0,0.00019189,2]
[349697679,1737382239106,-606.63,0.00019189,2]
[349697680,1737382239115,-500.0,0.00019189,2]
[349697681,1737382239124,-500.0,0.00019189,2]
[349697682,1737382239134,-500.0,0.00019189,2]
[349697683,1737382239143,-500.0,0.00019189,2]
[349697684,1737382239152,-192.01320334,0.00019189,2]
[349697685,1737382239162,-500.0,0.00019189,2]
[349697686,1737382239171,-553.04139549,0.00019189,2]
[349697687,1737382239181,-500.0,0.00019189,2]
[349697688,1737382239190,-500.0,0.00019189,2]
[349697689,1737382239200,-500.0,0.00019189,2]
[349697690,1737382239209,-500.0,0.00019189,2]
[349697691,1737382239220,-500.0,0.00019189,2]
[349697692,1737382239229,-500.0,0.00019189,2]
[349697693,1737382239239,-500.0,0.00019189,2]
[349697694,1737382239249,-500.0,0.00019189,2]
[349697695,1737382239258,-500.0,0.00019189,2]
[349697696,1737382239268,-500.0,0.00019189,2]
[349697697,1737382239278,-500.0,0.00019189,2]
[349697698,1737382239287,-500.0,0.00019189,2]
[349697699,1737382239297,-500.0,0.00019189,2]
[349697700,1737382239307,-500.0,0.00019189,2]
[349697701,1737382239328,-500.0,0.00019189,2]
[349697702,1737382239337,-500.0,0.00019189,2]
[349697703,1737382239346,-500.0,0.00019189,2]
[349697704,1737382239357,-500.0,0.00019189,2]
[349697705,1737382239367,-500.0,0.00019189,2]
[349697706,1737382239376,-500.0,0.00019189,2]
[349697707,1737382239387,-412.33945152,0.00019189,2]
[349697708,1737382239397,-251.18375063,0.00019189,2]
[349697709,1737382239406,-500.0,0.00019189,2]
[349697710,1737382239416,-500.0,0.00019189,2]
[349697711,1737382239426,-500.0,0.00019189,2]
[349697712,1737382239436,-500.0,0.00019189,2]
[349697713,1737382239446,-500.0,0.00019189,2]
[349697714,1737382239456,-150.0,0.00019215,2]
[349697717,1737382239470,-1815.72728868,0.00019231,2]
[349697719,1737382239479,-1082.0,0.00019251,2]
[349697721,1737382239491,-665.83,0.00019251,2]
[349697723,1737382239500,-155.554,0.00019251,2]
[349697725,1737382239510,-500.0,0.00019251,2]
[349697727,1737382239520,-532.17,0.00019251,2]
[349697728,1737382239529,-500.0,0.00019251,2]
[349697730,1737382239539,-1130.48,0.00019251,2]
[349697732,1737382239549,-726.19,0.00019251,2]
[349697734,1737382239559,-543.051879,0.00019251,2]
[349697735,1737382239568,-1357.98,0.00019251,2]
[349697736,1737382239578,-158.137982,0.00019251,2]
[349697737,1737382239587,-500.0,0.00019251,2]
[349697738,1737382239597,-522.19,0.00019251,2]
[349697739,1737382239607,-500.0,0.00019251,2]
[349697740,1737382239616,-576.84,0.00019251,2]
[349697741,1737382239626,-1943.2,0.00019251,2]
[349697742,1737382239636,-511.74,0.00019251,2]
[349697743,1737382239647,-500.0,0.00019251,2]
[349697744,1737382239659,-605.11,0.00019251,2]
[349697745,1737382239668,-1662.58,0.00019251,2]
[349697746,1737382239679,-500.0,0.00019251,2]